[Event "*** Titled Tuesday Blitz"]
[Site "Chess.com"]
[Date "2021.03.02"]
[Round "3"]
[White "Niktlt"]
[Black "albi1999"]
[Result "1/2-1/2"]
[WhiteElo "2405"]
[BlackElo "2589"]
[TimeControl "180+1"]
[EndTime "10:29:51 PST"]
[Termination "Game drawn by repetition"]

1. c4 {[%clk 0:03:00.9]} 1... e6 {[%clk 0:02:56.7]} 2. Nc3 {[%clk 0:03:00.2]}
2... d5 {[%clk 0:02:57.6]} 3. d4 {[%clk 0:02:59.2]} 3... c6 {[%clk 0:02:54.5]}
4. e4 {[%clk 0:02:59.4]} 4... dxe4 {[%clk 0:02:53.7]} 5. Nxe4 {[%clk 0:03:00.3]}
5... Bb4+ {[%clk 0:02:54.3]} 6. Bd2 {[%clk 0:03:00.8]} 6... Bxd2+ {[%clk
0:02:54.4]} 7. Qxd2 {[%clk 0:03:01.7]} 7... Nf6 {[%clk 0:02:48.8]} 8. Nxf6+
{[%clk 0:03:01.7]} 8... Qxf6 {[%clk 0:02:49.7]} 9. Nf3 {[%clk 0:03:01.7]} 9...
O-O {[%clk 0:02:49.3]} 10. Be2 {[%clk 0:03:01.6]} 10... b6 {[%clk 0:02:45.1]}
11. O-O {[%clk 0:03:01.2]} 11... Nd7 {[%clk 0:02:45.7]} 12. Rfd1 {[%clk
0:02:59.7]} 12... Bb7 {[%clk 0:02:46.1]} 13. Rac1 {[%clk 0:02:59.1]} 13... Rfd8
{[%clk 0:02:46.1]} 14. Qe3 {[%clk 0:02:58.4]} 14... Nf8 {[%clk 0:02:43.3]} 15.
Ne5 {[%clk 0:02:56.3]} 15... Ng6 {[%clk 0:02:32.3]} 16. Bf3 {[%clk 0:02:55]}
16... Rac8 {[%clk 0:02:32]} 17. h3 {[%clk 0:02:49.8]} 17... Nh4 {[%clk
0:02:26.1]} 18. Be4 {[%clk 0:02:44.6]} 18... Nf5 {[%clk 0:02:18.4]} 19. Bxf5
{[%clk 0:02:44.9]} 19... Qxf5 {[%clk 0:02:19.3]} 20. c5 {[%clk 0:02:42.3]} 20...
bxc5 {[%clk 0:02:10.4]} 21. Rxc5 {[%clk 0:02:34.3]} 21... Rd5 {[%clk 0:02:08.1]}
22. Rdc1 {[%clk 0:02:34.5]} 22... Rxc5 {[%clk 0:02:05.2]} 23. Rxc5 {[%clk
0:01:53.9]} 23... Qb1+ {[%clk 0:01:51.5]} 24. Qc1 {[%clk 0:01:37.9]} 24... Qxa2
{[%clk 0:01:50.4]} 25. Nxc6 {[%clk 0:01:32.3]} 25... Rxc6 {[%clk 0:01:47.8]} 26.
Rxc6 {[%clk 0:01:33.2]} 26... Bxc6 {[%clk 0:01:48.7]} 27. Qxc6 {[%clk
0:01:33.1]} 27... g6 {[%clk 0:01:44.1]} 28. Qc8+ {[%clk 0:01:16]} 28... Kg7
{[%clk 0:01:44.4]} 29. Qc3 {[%clk 0:01:16.9]} 29... Qd5 {[%clk 0:01:37.6]} 30.
Qb4 {[%clk 0:01:08.5]} 30... a5 {[%clk 0:01:33.1]} 31. Qa4 {[%clk 0:01:06.5]}
31... h5 {[%clk 0:01:30.2]} 32. b4 {[%clk 0:01:05.6]} 32... axb4 {[%clk
0:01:26.5]} 33. Qxb4 {[%clk 0:01:06.5]} 33... h4 {[%clk 0:01:25.8]} 34. Qd2
{[%clk 0:01:06]} 34... Qe4 {[%clk 0:01:22.6]} 35. Qc3 {[%clk 0:01:03.3]} 35...
Kh7 {[%clk 0:01:21.4]} 36. Qc7 {[%clk 0:01:01]} 36... Qe1+ {[%clk 0:01:17.2]}
37. Kh2 {[%clk 0:00:56]} 37... Qxf2 {[%clk 0:01:18.1]} 38. Qe5 {[%clk
0:00:53.1]} 38... Kh6 {[%clk 0:01:02.9]} 39. Kh1 {[%clk 0:00:25]} 39... Qg3
{[%clk 0:00:52.7]} 40. Qe4 {[%clk 0:00:19.6]} 40... Qg5 {[%clk 0:00:44.9]} 41.
Kh2 {[%clk 0:00:11.4]} 41... Kg7 {[%clk 0:00:44.6]} 42. Kh1 {[%clk 0:00:10.7]}
42... Kf6 {[%clk 0:00:41]} 43. Kh2 {[%clk 0:00:09.6]} 43... Qg3+ {[%clk
0:00:40.9]} 44. Kh1 {[%clk 0:00:09.7]} 44... g5 {[%clk 0:00:39.4]} 45. d5 {[%clk
0:00:06]} 45... Qe5 {[%clk 0:00:38.7]} 46. Qf3+ {[%clk 0:00:06.2]} 46... Qf5
{[%clk 0:00:36.7]} 47. Qc3+ {[%clk 0:00:06.3]} 47... Kg6 {[%clk 0:00:33.4]} 48.
dxe6 {[%clk 0:00:05.5]} 48... fxe6 {[%clk 0:00:33.5]} 49. Qh8 {[%clk 0:00:05]}
49... Qf1+ {[%clk 0:00:29.8]} 50. Kh2 {[%clk 0:00:05.3]} 50... Qf4+ {[%clk
0:00:30.4]} 51. Kh1 {[%clk 0:00:05.8]} 51... Kf5 {[%clk 0:00:30.6]} 52. Qf8+
{[%clk 0:00:05.2]} 52... Ke4 {[%clk 0:00:31]} 53. Qb4+ {[%clk 0:00:05]} 53...
Ke5 {[%clk 0:00:28.9]} 54. Qb8+ {[%clk 0:00:04.4]} 54... Kd4 {[%clk 0:00:29]}
55. Qb4+ {[%clk 0:00:03.2]} 55... Ke3 {[%clk 0:00:29.3]} 56. Qb6+ {[%clk
0:00:02.1]} 56... Ke2 {[%clk 0:00:29.3]} 57. Qxe6+ {[%clk 0:00:01.6]} 57... Kf2
{[%clk 0:00:28.8]} 58. Qa2+ {[%clk 0:00:02]} 58... Ke1 {[%clk 0:00:25.1]} 59.
Qb1+ {[%clk 0:00:02.4]} 59... Ke2 {[%clk 0:00:24.8]} 60. Qb2+ {[%clk 0:00:02.9]}
60... Qd2 {[%clk 0:00:25]} 61. Qb1 {[%clk 0:00:02.5]} 61... Kf2 {[%clk
0:00:18.5]} 62. Qg1+ {[%clk 0:00:02.8]} 62... Kg3 {[%clk 0:00:17.6]} 63. Qh2+
{[%clk 0:00:03.7]} 63... Kf2 {[%clk 0:00:17]} 64. Qg1+ {[%clk 0:00:04.6]} 64...
Ke2 {[%clk 0:00:16.6]} 65. Qh2 {[%clk 0:00:05.5]} 65... Qe1+ {[%clk 0:00:12.9]}
66. Qg1 {[%clk 0:00:05.9]} 66... Qf1 {[%clk 0:00:07.6]} 67. Qxf1+ {[%clk
0:00:05.6]} 67... Kxf1 {[%clk 0:00:08.5]} 68. Kh2 {[%clk 0:00:06.5]} 68... Kf2
{[%clk 0:00:09.4]} 69. Kh1 {[%clk 0:00:06.4]} 69... Kf1 {[%clk 0:00:10]} 70. Kh2
{[%clk 0:00:06.9]} 70... Kf2 {[%clk 0:00:10.2]} 71. Kh1 {[%clk 0:00:07.5]} 71...
Kf1 {[%clk 0:00:11.1]} 1/2-1/2

[Event "*** Titled Tuesday Blitz"]
[Site "Chess.com"]
[Date "2021.03.02"]
[Round "3"]
[White "swisspower96"]
[Black "Sanan_Sjugirov"]
[Result "0-1"]
[WhiteElo "2681"]
[BlackElo "2933"]
[TimeControl "180+1"]
[EndTime "10:29:58 PST"]
[Termination "Sanan_Sjugirov won by resignation"]

1. d4 {[%clk 0:03:00.9]} 1... Nf6 {[%clk 0:02:59.6]} 2. c4 {[%clk 0:03:01]} 2...
e6 {[%clk 0:02:59.6]} 3. Nf3 {[%clk 0:03:01.1]} 3... d5 {[%clk 0:02:52.7]} 4. g3
{[%clk 0:03:00.9]} 4... Bb4+ {[%clk 0:02:51.6]} 5. Bd2 {[%clk 0:03:00.9]} 5...
Be7 {[%clk 0:02:51.4]} 6. Bg2 {[%clk 0:03:01.1]} 6... O-O {[%clk 0:02:51.4]} 7.
O-O {[%clk 0:03:01.8]} 7... c6 {[%clk 0:02:51.1]} 8. Qb3 {[%clk 0:03:00.2]} 8...
a5 {[%clk 0:02:43.4]} 9. Rc1 {[%clk 0:02:49.7]} 9... h6 {[%clk 0:02:36.8]} 10.
a3 {[%clk 0:02:45]} 10... Nbd7 {[%clk 0:02:21.7]} 11. e3 {[%clk 0:02:17.9]}
11... Nb6 {[%clk 0:02:00.4]} 12. c5 {[%clk 0:02:07.8]} 12... Nc4 {[%clk
0:01:56.4]} 13. Rxc4 {[%clk 0:02:02.9]} 13... dxc4 {[%clk 0:01:57.3]} 14. Qxc4
{[%clk 0:02:03.6]} 14... Nd7 {[%clk 0:01:40.5]} 15. Nc3 {[%clk 0:01:56.5]} 15...
b6 {[%clk 0:01:39.6]} 16. cxb6 {[%clk 0:01:55.4]} 16... Qxb6 {[%clk 0:01:38.8]}
17. Na4 {[%clk 0:01:50.2]} 17... Qb5 {[%clk 0:01:35.5]} 18. Qc2 {[%clk 0:01:31]}
18... Ba6 {[%clk 0:01:34]} 19. Nc3 {[%clk 0:00:28.7]} 19... Qb7 {[%clk
0:01:26.1]} 20. Ne1 {[%clk 0:00:28.8]} 20... Rfc8 {[%clk 0:01:19.6]} 21. Nd3
{[%clk 0:00:22.6]} 21... Rab8 {[%clk 0:01:19.1]} 22. Na4 {[%clk 0:00:21.7]}
22... Qb5 {[%clk 0:01:05]} 23. Ndc5 {[%clk 0:00:21.9]} 23... Nxc5 {[%clk
0:01:01.2]} 24. Nxc5 {[%clk 0:00:10.3]} 24... Bxc5 {[%clk 0:00:58.9]} 25. Qxc5
{[%clk 0:00:09.4]} 25... Qxc5 {[%clk 0:00:57.9]} 26. dxc5 {[%clk 0:00:10.3]}
26... a4 {[%clk 0:00:42.8]} 27. Bc3 {[%clk 0:00:09.6]} 27... Bb5 {[%clk
0:00:39.5]} 28. Rd1 {[%clk 0:00:05]} 28... Rd8 {[%clk 0:00:38.2]} 29. Rd4 {[%clk
0:00:04.2]} 29... e5 {[%clk 0:00:36.7]} 30. Rd6 {[%clk 0:00:04.4]} 30... f6
{[%clk 0:00:34]} 31. Ba5 {[%clk 0:00:03.6]} 31... Rf8 {[%clk 0:00:14]} 32. Bh3
{[%clk 0:00:02.4]} 32... Bc4 {[%clk 0:00:12.2]} 33. Bc3 {[%clk 0:00:02.5]} 33...
Bd5 {[%clk 0:00:11.1]} 34. Bg4 {[%clk 0:00:01.9]} 34... Rfd8 {[%clk 0:00:09.1]}
35. Bd7 {[%clk 0:00:01.8]} 35... Kf7 {[%clk 0:00:08.3]} 36. f3 {[%clk
0:00:01.5]} 36... Ke7 {[%clk 0:00:08.4]} 37. Bxc6 {[%clk 0:00:01.3]} 37... Rxd6
{[%clk 0:00:07.9]} 38. cxd6+ {[%clk 0:00:02]} 38... Kxd6 {[%clk 0:00:08.8]} 39.
Bxa4 {[%clk 0:00:02.1]} 39... Ke6 {[%clk 0:00:07.6]} 40. Kf2 {[%clk 0:00:02.5]}
40... e4 {[%clk 0:00:07.4]} 41. f4 {[%clk 0:00:02.8]} 41... Bc4 {[%clk
0:00:06.8]} 42. Bd1 {[%clk 0:00:03.5]} 42... Kd5 {[%clk 0:00:06.7]} 43. g4
{[%clk 0:00:04]} 43... Bd3 {[%clk 0:00:06.7]} 44. Be2 {[%clk 0:00:04.3]} 44...
Kc4 {[%clk 0:00:06.7]} 45. Ke1 {[%clk 0:00:04.7]} 45... Bxe2 {[%clk 0:00:06.8]}
46. Kxe2 {[%clk 0:00:05.1]} 46... Rd8 {[%clk 0:00:07.4]} 47. g5 {[%clk
0:00:05.3]} 47... hxg5 {[%clk 0:00:07.4]} 48. fxg5 {[%clk 0:00:05.3]} 48... fxg5
{[%clk 0:00:08.3]} 49. Bxg7 {[%clk 0:00:05.7]} 49... Rd7 {[%clk 0:00:08.8]} 50.
Be5 {[%clk 0:00:06]} 50... Re7 {[%clk 0:00:09.2]} 51. Bc3 {[%clk 0:00:05.7]}
51... Rh7 {[%clk 0:00:09.4]} 52. Be5 {[%clk 0:00:05.4]} 52... Kd5 {[%clk
0:00:09.7]} 53. Bg3 {[%clk 0:00:05.3]} 53... Rb7 {[%clk 0:00:10.3]} 54. b4
{[%clk 0:00:01.9]} 54... Ra7 {[%clk 0:00:10.7]} 55. b5 {[%clk 0:00:01.3]} 55...
Rxa3 {[%clk 0:00:10.7]} 56. b6 {[%clk 0:00:02]} 56... Rb3 {[%clk 0:00:11.1]} 57.
Bc7 {[%clk 0:00:02.9]} 57... Rb2+ {[%clk 0:00:11.5]} 58. Kf1 {[%clk 0:00:03.1]}
58... Kc4 {[%clk 0:00:11.6]} 59. Kg1 {[%clk 0:00:03.7]} 59... Kd3 {[%clk
0:00:11.9]} 60. Bd8 {[%clk 0:00:04.3]} 60... g4 {[%clk 0:00:11.5]} 61. Bg5
{[%clk 0:00:04.3]} 61... Rxb6 {[%clk 0:00:10.8]} 62. Kg2 {[%clk 0:00:05.2]}
62... Rb2+ {[%clk 0:00:08.5]} 63. Kg3 {[%clk 0:00:05.6]} 63... Re2 {[%clk
0:00:09]} 64. Bf4 {[%clk 0:00:06.2]} 64... Rxe3+ {[%clk 0:00:08.1]} 65. Kxg4
{[%clk 0:00:06.8]} 65... Re1 {[%clk 0:00:07.5]} 66. h4 {[%clk 0:00:07.3]} 66...
e3 {[%clk 0:00:07.5]} 67. Bxe3 {[%clk 0:00:04.7]} 67... Kxe3 {[%clk 0:00:08.4]}
68. h5 {[%clk 0:00:05.4]} 68... Ke4 {[%clk 0:00:08.8]} 69. Kg5 {[%clk 0:00:06]}
69... Ke5 {[%clk 0:00:08.9]} 70. h6 {[%clk 0:00:06.5]} 70... Rg1+ {[%clk
0:00:08.3]} 71. Kh5 {[%clk 0:00:07.2]} 71... Kf5 {[%clk 0:00:08.5]} 0-1

[Event "*** Titled Tuesday Blitz"]
[Site "Chess.com"]
[Date "2021.03.02"]
[Round "3"]
[White "GadimbayliA"]
[Black "Ekose"]
[Result "1-0"]
[WhiteElo "2820"]
[BlackElo "2534"]
[TimeControl "180+1"]
[EndTime "10:29:59 PST"]
[Termination "GadimbayliA won by checkmate"]

1. e4 {[%clk 0:03:00.9]} 1... e5 {[%clk 0:02:49.1]} 2. Nf3 {[%clk 0:03:00.6]}
2... Nc6 {[%clk 0:02:48.3]} 3. Nc3 {[%clk 0:03:00.7]} 3... Nf6 {[%clk
0:02:46.5]} 4. d4 {[%clk 0:03:01.2]} 4... exd4 {[%clk 0:02:46.2]} 5. Nxd4 {[%clk
0:03:02.1]} 5... Bb4 {[%clk 0:02:45.3]} 6. Nxc6 {[%clk 0:03:02]} 6... bxc6
{[%clk 0:02:44.2]} 7. Bd3 {[%clk 0:03:02.5]} 7... d5 {[%clk 0:02:42.8]} 8. exd5
{[%clk 0:03:03.4]} 8... Qe7+ {[%clk 0:02:42.4]} 9. Qe2 {[%clk 0:03:01.8]} 9...
Qxe2+ {[%clk 0:02:42]} 10. Kxe2 {[%clk 0:03:02.5]} 10... cxd5 {[%clk 0:02:42.1]}
11. Be3 {[%clk 0:02:59]} 11... c6 {[%clk 0:02:36.5]} 12. Na4 {[%clk 0:02:56.6]}
12... Be6 {[%clk 0:02:30.9]} 13. f3 {[%clk 0:02:48.7]} 13... Nd7 {[%clk
0:02:25.2]} 14. Rac1 {[%clk 0:02:46.8]} 14... O-O {[%clk 0:02:12.1]} 15. Kf2
{[%clk 0:02:42.5]} 15... Be7 {[%clk 0:01:54.8]} 16. Rhd1 {[%clk 0:02:39.4]}
16... c5 {[%clk 0:01:45.6]} 17. c3 {[%clk 0:02:38.6]} 17... Rab8 {[%clk
0:01:43.7]} 18. b3 {[%clk 0:02:34.9]} 18... Rfc8 {[%clk 0:01:40.8]} 19. Bf4
{[%clk 0:02:12.3]} 19... Ra8 {[%clk 0:01:30.3]} 20. Ba6 {[%clk 0:02:12.2]} 20...
Rf8 {[%clk 0:01:21.8]} 21. Bb7 {[%clk 0:02:11.8]} 21... Rad8 {[%clk 0:01:19.4]}
22. Bxd5 {[%clk 0:02:09.2]} 22... Bxd5 {[%clk 0:01:08.9]} 23. Rxd5 {[%clk
0:02:10.1]} 23... Nb6 {[%clk 0:01:09.3]} 24. Nxb6 {[%clk 0:01:57.2]} 24... axb6
{[%clk 0:01:10.2]} 25. Rcd1 {[%clk 0:01:57.8]} 25... Rxd5 {[%clk 0:01:02]} 26.
Rxd5 {[%clk 0:01:58.7]} 26... Bf6 {[%clk 0:01:02.4]} 27. c4 {[%clk 0:01:51.5]}
27... Ra8 {[%clk 0:00:52.7]} 28. a4 {[%clk 0:01:51.3]} 28... Bd8 {[%clk
0:00:48]} 29. Rd7 {[%clk 0:01:48.3]} 29... Kf8 {[%clk 0:00:45.3]} 30. Rb7 {[%clk
0:01:44.6]} 30... Ke8 {[%clk 0:00:43.3]} 31. Ke3 {[%clk 0:01:44.7]} 31... Rc8
{[%clk 0:00:42.8]} 32. Ke4 {[%clk 0:01:35.8]} 32... Rc6 {[%clk 0:00:42.3]} 33.
Kd5 {[%clk 0:01:34.2]} 33... Re6 {[%clk 0:00:40.5]} 34. Be5 {[%clk 0:01:32.1]}
34... g5 {[%clk 0:00:32]} 35. g4 {[%clk 0:01:24.8]} 35... h5 {[%clk 0:00:28.1]}
36. h3 {[%clk 0:01:17.6]} 36... hxg4 {[%clk 0:00:27.4]} 37. hxg4 {[%clk
0:01:18.5]} 37... Rh6 {[%clk 0:00:27.6]} 38. Bc7 {[%clk 0:00:59.9]} 38... Bxc7
{[%clk 0:00:20.2]} 39. Rxc7 {[%clk 0:01:00.8]} 39... Rh3 {[%clk 0:00:18.3]} 40.
Ke4 {[%clk 0:00:58.4]} 40... Rh6 {[%clk 0:00:17.8]} 41. Kf5 {[%clk 0:00:50.2]}
41... Rd6 {[%clk 0:00:17.1]} 42. Rb7 {[%clk 0:00:47.8]} 42... f6 {[%clk
0:00:17]} 43. Kg6 {[%clk 0:00:38.7]} 43... Kd8 {[%clk 0:00:17]} 44. Rf7 {[%clk
0:00:37.3]} 44... Rd3 {[%clk 0:00:15.8]} 45. Rxf6 {[%clk 0:00:37.1]} 45... Rxb3
{[%clk 0:00:16]} 46. Kxg5 {[%clk 0:00:36.9]} 46... Rb4 {[%clk 0:00:15.9]} 47.
Kh6 {[%clk 0:00:36.5]} 47... Rxc4 {[%clk 0:00:16]} 48. g5 {[%clk 0:00:36.8]}
48... Ke7 {[%clk 0:00:13.5]} 49. Rxb6 {[%clk 0:00:34.4]} 49... Rxa4 {[%clk
0:00:12.5]} 50. g6 {[%clk 0:00:31.5]} 50... Rh4+ {[%clk 0:00:12.1]} 51. Kg7
{[%clk 0:00:27.4]} 51... Rf4 {[%clk 0:00:11.6]} 52. Kh7 {[%clk 0:00:16.8]} 52...
Rh4+ {[%clk 0:00:10.4]} 53. Kg8 {[%clk 0:00:17]} 53... Rf4 {[%clk 0:00:11.3]}
54. Rb7+ {[%clk 0:00:16.2]} 54... Ke8 {[%clk 0:00:10.9]} 55. Rf7 {[%clk
0:00:12.9]} 55... Rh4 {[%clk 0:00:10.8]} 56. g7 {[%clk 0:00:10.4]} 56... c4
{[%clk 0:00:10.6]} 57. Rc7 {[%clk 0:00:11]} 57... Rh5 {[%clk 0:00:08.9]} 58. Rc6
{[%clk 0:00:11.2]} 58... Rh4 {[%clk 0:00:08.2]} 59. Rc5 {[%clk 0:00:10.5]} 59...
Ke7 {[%clk 0:00:08]} 60. Re5+ {[%clk 0:00:08.5]} 60... Kf6 {[%clk 0:00:07.3]}
61. Rc5 {[%clk 0:00:05.7]} 61... Ke7 {[%clk 0:00:07.2]} 62. Rc8 {[%clk
0:00:04.3]} 62... Rh5 {[%clk 0:00:06.3]} 63. Rxc4 {[%clk 0:00:03.9]} 63... Rh3
{[%clk 0:00:05.4]} 64. Re4+ {[%clk 0:00:04.3]} 64... Kf6 {[%clk 0:00:05.5]} 65.
Kf8 {[%clk 0:00:04.7]} 65... Rxf3 {[%clk 0:00:01.8]} 66. g8=Q {[%clk 0:00:05.1]}
66... Kf5 {[%clk 0:00:01.5]} 67. Qg4+ {[%clk 0:00:05.7]} 67... Kf6 {[%clk
0:00:01.1]} 68. Re6# {[%clk 0:00:06]} 1-0

[Event "*** Titled Tuesday Blitz"]
[Site "Chess.com"]
[Date "2021.03.02"]
[Round "3"]
[White "DFeco"]
[Black "karinachess1"]
[Result "0-1"]
[WhiteElo "2262"]
[BlackElo "2514"]
[TimeControl "180+1"]
[EndTime "10:30:00 PST"]
[Termination "karinachess1 won by resignation"]

1. c4 {[%clk 0:03:00.9]} 1... Nf6 {[%clk 0:02:58.6]} 2. g3 {[%clk 0:03:01.2]}
2... g6 {[%clk 0:02:57.8]} 3. Bg2 {[%clk 0:03:01.7]} 3... Bg7 {[%clk 0:02:57.9]}
4. Nc3 {[%clk 0:03:02.1]} 4... O-O {[%clk 0:02:57.7]} 5. e4 {[%clk 0:03:01.9]}
5... d6 {[%clk 0:02:57.8]} 6. Nge2 {[%clk 0:03:02.2]} 6... e5 {[%clk 0:02:48.8]}
7. O-O {[%clk 0:03:01.5]} 7... Be6 {[%clk 0:02:36.1]} 8. d3 {[%clk 0:03:01]}
8... Qd7 {[%clk 0:02:34]} 9. Bg5 {[%clk 0:02:40.1]} 9... h6 {[%clk 0:02:29.3]}
10. Bxf6 {[%clk 0:02:38.1]} 10... Bxf6 {[%clk 0:02:28.9]} 11. f4 {[%clk
0:02:33.5]} 11... exf4 {[%clk 0:02:08.9]} 12. gxf4 {[%clk 0:02:32.1]} 12... Bh3
{[%clk 0:02:02]} 13. Nd5 {[%clk 0:02:18.4]} 13... Bd8 {[%clk 0:01:57.7]} 14.
Bxh3 {[%clk 0:02:04.7]} 14... Qxh3 {[%clk 0:01:58.6]} 15. Ng3 {[%clk 0:02:03.5]}
15... c6 {[%clk 0:01:51.1]} 16. Ne3 {[%clk 0:01:59.7]} 16... Nd7 {[%clk
0:01:35.1]} 17. Rf3 {[%clk 0:01:34.2]} 17... Qe6 {[%clk 0:01:31.8]} 18. f5
{[%clk 0:01:27.1]} 18... Qe7 {[%clk 0:01:20.6]} 19. Ng4 {[%clk 0:01:09.2]} 19...
Qg5 {[%clk 0:01:11.8]} 20. h3 {[%clk 0:00:35.6]} 20... h5 {[%clk 0:01:11]} 21.
fxg6 {[%clk 0:00:29]} 21... fxg6 {[%clk 0:01:01.6]} 22. Nh2 {[%clk 0:00:22.6]}
22... Rxf3 {[%clk 0:00:53.2]} 23. Qxf3 {[%clk 0:00:20.5]} 23... Bb6+ {[%clk
0:00:53.3]} 24. Kh1 {[%clk 0:00:19.8]} 24... Ne5 {[%clk 0:00:53.2]} 25. Qg2
{[%clk 0:00:17.7]} 25... Nxd3 {[%clk 0:00:52.3]} 26. Nf3 {[%clk 0:00:17.4]}
26... Qc5 {[%clk 0:00:18.5]} 27. Kh2 {[%clk 0:00:15]} 27... Nf4 {[%clk
0:00:17.2]} 28. Qd2 {[%clk 0:00:13.8]} 28... Qf2+ {[%clk 0:00:16]} 29. Qxf2
{[%clk 0:00:13]} 29... Bxf2 {[%clk 0:00:16.9]} 30. Rf1 {[%clk 0:00:12.1]} 30...
Bxg3+ {[%clk 0:00:12.1]} 31. Kxg3 {[%clk 0:00:12.2]} 31... Rf8 {[%clk
0:00:11.7]} 32. Kh2 {[%clk 0:00:09.4]} 32... Ne6 {[%clk 0:00:08.9]} 33. b3
{[%clk 0:00:08.1]} 33... Nd4 {[%clk 0:00:07.3]} 34. Nd2 {[%clk 0:00:07.1]} 34...
Rxf1 {[%clk 0:00:05.8]} 35. Nxf1 {[%clk 0:00:07.5]} 35... Kg7 {[%clk 0:00:05.2]}
36. Kg3 {[%clk 0:00:07.4]} 36... Kf6 {[%clk 0:00:05.1]} 37. Kf2 {[%clk
0:00:07.4]} 37... Ke5 {[%clk 0:00:03.9]} 38. Ke3 {[%clk 0:00:07.6]} 38... Nc2+
{[%clk 0:00:04.1]} 39. Kd3 {[%clk 0:00:07.8]} 39... Nb4+ {[%clk 0:00:04.5]} 40.
Ke3 {[%clk 0:00:07.5]} 40... Nxa2 {[%clk 0:00:04.6]} 41. Nd2 {[%clk 0:00:07.9]}
41... Nb4 {[%clk 0:00:04.5]} 42. Nf3+ {[%clk 0:00:08.5]} 42... Kf6 {[%clk
0:00:05.1]} 43. Nd4 {[%clk 0:00:08.8]} 43... a5 {[%clk 0:00:03.9]} 44. Nf3
{[%clk 0:00:08.2]} 44... Na6 {[%clk 0:00:04]} 45. Kd4 {[%clk 0:00:08.3]} 45...
Nc5 {[%clk 0:00:04.4]} 46. Nd2 {[%clk 0:00:06.7]} 46... Ne6+ {[%clk 0:00:03.9]}
47. Ke3 {[%clk 0:00:06.5]} 47... g5 {[%clk 0:00:04.4]} 48. Nf3 {[%clk
0:00:05.7]} 48... g4 {[%clk 0:00:05]} 49. hxg4 {[%clk 0:00:05.4]} 49... hxg4
{[%clk 0:00:05.9]} 50. Nh2 {[%clk 0:00:05.4]} 50... Kg5 {[%clk 0:00:05.9]} 51.
Nf1 {[%clk 0:00:04]} 51... Nc5 {[%clk 0:00:06.3]} 52. Ng3 {[%clk 0:00:03]} 52...
Kh4 {[%clk 0:00:05.4]} 53. Nf5+ {[%clk 0:00:02.8]} 53... Kh3 {[%clk 0:00:06]}
54. Nxd6 {[%clk 0:00:02.6]} 54... g3 {[%clk 0:00:06.5]} 55. Nf7 {[%clk
0:00:02.4]} 55... g2 {[%clk 0:00:06.5]} 56. Ng5+ {[%clk 0:00:02.9]} 56... Kg3
{[%clk 0:00:06.8]} 57. Nf3 {[%clk 0:00:02.8]} 57... Nxb3 {[%clk 0:00:06.8]} 58.
e5 {[%clk 0:00:03]} 58... Nc5 {[%clk 0:00:07.1]} 59. Ng1 {[%clk 0:00:03]} 59...
Ne6 {[%clk 0:00:07.1]} 60. Ne2+ {[%clk 0:00:02]} 60... Kh2 {[%clk 0:00:07.5]}
61. Ke4 {[%clk 0:00:01.9]} 61... a4 {[%clk 0:00:07.4]} 62. Kf5 {[%clk
0:00:01.7]} 62... Nd4+ {[%clk 0:00:07.8]} 63. Ke4 {[%clk 0:00:01.7]} 63... Nxe2
{[%clk 0:00:07.3]} 64. e6 {[%clk 0:00:01.9]} 64... g1=Q {[%clk 0:00:07.7]} 65.
e7 {[%clk 0:00:01.6]} 65... Qg8 {[%clk 0:00:08.3]} 66. Ke3 {[%clk 0:00:01.5]}
66... Qe8 {[%clk 0:00:08.9]} 67. Kxe2 {[%clk 0:00:01.5]} 67... Qxe7+ {[%clk
0:00:09.8]} 68. Kd2 {[%clk 0:00:01.4]} 68... Qb4+ {[%clk 0:00:10.7]} 69. Kd3
{[%clk 0:00:01.6]} 69... a3 {[%clk 0:00:11.3]} 70. Kd4 {[%clk 0:00:02]} 70... a2
{[%clk 0:00:11.9]} 71. Ke5 {[%clk 0:00:02.6]} 71... Qxc4 {[%clk 0:00:12.2]} 0-1